{"text_format":"2","workbook":"xlsx","n_sheets":12,"sheets":["Index","Data Entry","Dates","AutoFill","FlashFill","Custom List","Comments","FormulaCells","DataValidation","Screentip","Master","Challenge"],"not_rendered":{"charts":0,"images":4,"macros":0,"external_links":0,"defined_names":1,"comments":3,"pivot_tables":0},"unopened":[],"bounds":{"document_bytes":16777216,"sheet_cells":100000,"run_cost":"one","rows_first":2000,"rows_last":500,"rows_between":2000,"halvings":0,"cell_chars":16384,"cell_head_chars":4096},"cells_cut":0,"cells_raw":0,"read":"whole","date_system":"1900"}

{"sheet":"Index","index":0,"n_rows":15,"n_cols":7,"rows_kept":15,"cut":false,"hidden":false,"merged":[]}
[]
[null,null,"Data Input & Hidden Features to Save Time"]
[null,null,"START FILE"]
[]
[null,null,"Link","Topic",null,"Comprehension","Your Notes"]
[null,null,"Data Entry","Data Entry, Simple Calculations & Hidden Feature",null,"Select One…"]
[null,null,"Date","Inputting Dates & Time Stamps",null,"Select One…"]
[null,null,"AutoFill","Use Autofill To Do Your Work",null,"Select One…"]
[null,null,"FlashFill","Flash Fill For Major Time Saving (Become Pro)",null,"Select One…"]
[null,null,"Custom List","Custom Lists With Autofill (Hidden Feature)",null,"Select One…"]
[null,null,"Comments","Inputting & Editing Comments & Notes",null,"Select One…"]
[null,null,"FormulaCells","Finding Formula & Input Cells with ONE Click (Become Pro)",null,"Select One…"]
[null,null,"DataValidation","Data Validation to Reduce Time Checking Data",null,"Select One…"]
[null,null,"Screentip","Adding Tooltips (ScreenTips in Excel)",null,"Select One…"]
[null,null,"Challenge","Challenge: Data Manipulation & Preparation",null,"Select One…"]

{"sheet":"Data Entry","index":1,"n_rows":3,"n_cols":1,"rows_kept":3,"cut":false,"hidden":false,"merged":[]}
["Data Entry, Simple Calculations & Hidden Feature"]
["Learn how to input, edit and format data"]
["Our aim is to get the data looking like this"]

{"sheet":"Dates","index":2,"n_rows":7,"n_cols":1,"rows_kept":7,"cut":false,"hidden":false,"merged":[]}
["Inputting Dates & Time Stamps"]
[]
["Input Date"]
[]
["Time Stamp (Date)"]
[]
["Time Stamp (Date & Time)"]

{"sheet":"AutoFill","index":3,"n_rows":4,"n_cols":5,"rows_kept":4,"cut":false,"hidden":false,"merged":[]}
["AutoFill to Save Time"]
[]
["Text","Number","Months","Weekday","Date"]
["Scarf",1,"Jan","Monday","2019-07-20"]

{"sheet":"FlashFill","index":4,"n_rows":25,"n_cols":12,"rows_kept":25,"cut":false,"hidden":false,"merged":[]}
["Flash Fill - Speedup Data Entry"]
["Use Flashfill instead of manual entry"]
[]
["Name","First Name","Last Name",null,"Name","Email",null,"Name","Proper Case",null,"Name","Initials"]
["Gary Miller",null,null,null,"Gary Miller",null,null,"gary miller",null,null,"Gary Miller"]
["James Willard",null,null,null,"James Willard",null,null,"James willard",null,null,"James Willard"]
["Richard Elliot",null,null,null,"Richard Elliot",null,null,"Richard elliot",null,null,"Richard Elliot"]
["Robert Spear",null,null,null,"Robert Spear",null,null,"Robert Spear",null,null,"Robert Junior Spear"]
["Roger Mun",null,null,null,"Roger Mun",null,null,"Roger Mun",null,null,"Roger Mun"]
["Paul Garza",null,null,null,"Paul Garza",null,null,"paul Garza",null,null,"Paul Garza"]
["Robert Marquez",null,null,null,"Robert Marquez",null,null,"Robert marquez",null,null,"Robert Marquez"]
["Natalie Porter",null,null,null,"Natalie Porter",null,null,"natalie porter",null,null,"Natalie Porter"]
["Kim West",null,null,null,"Kim West",null,null,"Kim west",null,null,"Kim Sophie West"]
[]
[]
["First Name","Last Name","Name",null,"Product","Woman / Man",null,"Date","Year"]
["Gary","Miller",null,null,"Watch-W",null,null,"2019-02-23"]
["James","Willard",null,null,"Scarf-M",null,null,"2019-04-12"]
["Richard","Elliot",null,null,"Shirt-M",null,null,"2019-08-23"]
["Robert","Spear",null,null,"Shirt-M",null,null,"2020-05-06"]
["Roger","Mun",null,null,"Scarf-W",null,null,"2020-03-04"]
["Paul","Garza",null,null,"Watch-M",null,null,"2019-03-24"]
["Robert","Marquez",null,null,"Scarf-W",null,null,"2021-02-08"]
["Natalie","Porter",null,null,"Shirt-W",null,null,"2020-07-21"]
["Kim","West",null,null,"Scarf-W",null,null,"2020-10-28"]

{"sheet":"Custom List","index":5,"n_rows":8,"n_cols":1,"rows_kept":8,"cut":false,"hidden":false,"merged":[]}
["Custom Lists with Autofill"]
[]
["Region"]
["North America"]
["South America"]
["Asia"]
["Europe"]
["Australia"]

{"sheet":"Comments","index":6,"n_rows":20,"n_cols":2,"rows_kept":20,"cut":false,"hidden":false,"merged":[]}
["Inputting & Editing Comments & Notes"]
[]
["Excel Notes"]
["Region","Sales"]
["North America",2500]
["South America",2300]
["Asia",6200]
["Europe",9600]
["Australia",1800]
[]
[]
[]
["Excel Comments - If you have Excel for Office 365 you can follow along with the video tutorial"]
[]
["Region","Sales"]
["North America",2500]
["South America",2300]
["Asia",6200]
["Europe",9600]
["Australia",1800]

{"sheet":"FormulaCells","index":7,"n_rows":17,"n_cols":10,"rows_kept":17,"cut":false,"hidden":false,"merged":[]}
["Recognizing Formula & Input Cells"]
[]
["App by Segment / Revenue $"]
[]
["Games segment",null,null,{"$f":"J5-3","v":2016},null,{"$f":"J5-2","v":2017},null,{"$f":"J5-1","v":2018},null,{"$f":"YEAR(TODAY())","v":2019}]
[null,"Pes",null,41722.441200000001,null,46358.267999999996,null,45316,null,46222.32]
[null,"Baden",null,37023.420000000006,null,35260.400000000001,null,35980,null,34900.6]
[null,"Twistrr",null,26625.963500000002,null,28027.33,null,27211,null,27483.11]
[null,"Games Other",null,96100.906440000006,null,104457.507,null,102109,null,103640.63499999999]
[null,"Total",null,{"$f":"SUM(D6:D9)","v":201472.73114000002},{"$f":"SUM(E6:E9)","v":0},214103.505,0,210616,0,212246.66499999998]
[]
["Productivity segment"]
[null,"Blend",null,18205.88,null,16550.8,null,17990,null,18169.900000000001]
[null,"Pet Feed",null,18254.538000000004,null,18073.800000000003,null,16735,null,16735]
[null,"Mirrrr",null,15008.170799999998,null,15314.46,null,15627,null,{"$f":"H15*(1-6%)","v":14689.38}]
[null,"Productivity Other",null,115682.1882,null,113413.91,null,112291,null,110045.18]
[null,"Total",null,{"$f":"SUM(D13:D16)","v":167150.777},{"$f":"SUM(E13:E16)","v":0},{"$f":"SUM(F13:F16)","v":163352.97},{"$f":"SUM(G13:G16)","v":0},{"$f":"SUM(H13:H16)","v":162643},{"$f":"SUM(I13:I16)","v":0},{"$f":"SUM(J13:J16)","v":159639.46}]

{"sheet":"DataValidation","index":8,"n_rows":18,"n_cols":4,"rows_kept":18,"cut":false,"hidden":false,"merged":[]}
["Basic Data Validation"]
[]
["Please input the following information for your team"]
[]
["Name","Employee ID","Segment","Start Date"]
["Kim West",250,"Utility","2015-10-18"]
["Stevie Bridge",365,"Game","18/8/2018"]
["Roger Mun","985","Productvity","2018-08-16"]
["Paul Hill",158,"Games","2017-12-03"]
[]
[]
["Version with Data Validation"]
[]
["Name","Employee ID","Segment","Start Date"]
["Kim West",250,"Productivity","2015-10-18"]
["Stevie Bridge",365,"Game","2018-08-08"]
["Roger Mun",985,"Productivity","2018-08-16"]
["Paul Hill",158,"Game","2017-12-03"]

{"sheet":"Screentip","index":9,"n_rows":33,"n_cols":5,"rows_kept":33,"cut":false,"hidden":false,"merged":[]}
["Adding Tooltips (ScreenTips in Excel)"]
[]
[]
[]
[null,null,"My Name"]
[null,null,"My address Line 1"]
[null,null,"My address Line 2"]
[null,null,"My address Line 3"]
[]
[null,null,null,"Invoice",15076]
[null,null,null,"Date","2019-03-05"]
[null,null,null,"Payment terms","14 days net"]
[]
[]
[null,null,"Company Name"]
[null,null,"Client Name"]
[null,null,"Address"]
[]
[]
[]
[null,null,"Services","Time Period","Price in USD"]
[]
[]
[]
[]
[null,null,null,"Subtotal",{"$f":"SUM(E22:E25)","v":0}]
[null,null,null,"VAT",0.2]
[null,null,null,"Total",{"$f":"E26*(1+E27)","v":0}]
[]
[null,null,"Bank Info"]
[null,null,"Bank Name"]
[null,null,"IBAN: 2342456435"]
[null,null,"BIC: GIBARESCXX"]

{"sheet":"Master","index":10,"n_rows":6,"n_cols":1,"rows_kept":6,"cut":false,"hidden":false,"merged":[]}
["Segment Master data (For DataValidation tab)"]
[]
["Segment"]
["Game"]
["Productivity"]
["Utility"]

{"sheet":"Challenge","index":11,"n_rows":40,"n_cols":12,"rows_kept":40,"cut":false,"hidden":false,"merged":[]}
["Challenge: Data Manipulation & Preparation",{"$nulls":10},false]
["You receive the below information for sales agents - you need to do the following:",{"$nulls":10},false]
[1,"Create a login user id that consists of the last name followed by the first character of the first name",{"$nulls":9},false]
[2,"Add the start year to column D",{"$nulls":9},false]
[3,"Add a note (legacy comment) to A9 \"Please input first name, followed by last name\"",{"$nulls":7},"WELL DONE!",null,false]
[4,"Add a screen tip for C9 that describes the logic behind creating the system login"]
[5,"Add data validation for start date to ensure the date is input correctly - apply this from B10 to B50. Ensure it works correctly if new dates are added."]
[]
["Sales Agent","Start Date","System Login","Start Year"]
["Stevie Bridge","2013-12-11"]
["Ewan Thompson","2012-07-18"]
["Richard Elliot","2015-01-05"]
["Paul Hill","2016-02-04"]
["Paul Garza","2015-10-18"]
["Robert Musser","2018-05-05"]
["Betina Bauer","2011-10-06"]
["Peter Ramsy","2017-01-11"]
["Brigitte Bond","2015-10-19"]
["Gary Miller","2013-03-27"]
["James Willard","2013-11-19"]
["Robert Spear","2011-06-23"]
["Roger Mun","2012-07-13"]
["Robert Marquez","2013-01-10"]
["Natalie Porter","2014-12-22"]
["Kim West","2018-01-06"]
["Andre Cooper","2011-08-16"]
["Crystal Doyle","2013-03-28"]
["Daniel Garrett","2014-12-12"]
["Ann Withers","2018-04-19"]
["Corinna Schmidt","2015-03-21"]
["Walter Miller","2013-01-23"]
["Paul Wells","2018-12-06"]
["Daniela Schreiber","2014-03-23"]
["Dan Ziegler","2012-01-23"]
["Wolfgang Ramjac","2014-07-27"]
["Robert Richardson","2012-10-24"]
["Robert Blume","2018-01-21"]
["Mike Saban","2011-02-08"]
["Maria Tot","2015-11-02"]
["Lukas Hofer","2014-02-08"]